bitfinex-derivatives/quotes_ETHF0:USTF0_20250524
["timestamp","ask_amount","ask_price","bid_price","bid_amount"]
[1748083231840,48.20791,2568.6,2568.5,0.0049819]
[1748083233440,43.20791,2568.6,2568.5,0.0049819]
[1748083234445,43.20991,2568.6,2568.5,0.0049819]
[1748083234638,43.21091,2568.6,2568.5,0.0049819]
[1748083234839,40.91091,2568.6,2568.5,0.0049819]
[1748083236247,40.98640626,2568.6,2568.5,0.0049819]
[1748083236946,0.07549626,2568.6,2568.5,0.7834219]
[1748083237158,0.07549626,2568.6,2568.5,3.9912219]
[1748083237447,0.07549626,2568.6,2568.5,3.2127819]
[1748083238050,0.85390626,2568.6,2568.5,3.2127819]
[1748083238248,0.85390626,2568.6,2568.5,4.5177819]
[1748083239151,2.18460626,2568.6,2568.5,0.0049819]
[1748083239345,2.87930626,2568.6,2568.5,0.0049819]
[1748083241350,2.18460626,2568.6,2568.5,0.0049819]
[1748083241652,0.07549626,2568.6,2568.5,3.9912219]
[1748083243957,0.07549626,2568.6,2568.5,4.77271851]
[1748083245256,0.07549626,2568.6,2568.5,9.77271851]
[1748083245456,0.07549626,2568.6,2568.5,10.05684231]
[1748083245953,0.64665704,2569.6,2568.5,9.27840231]
[1748083246161,0.64665704,2569.6,2569.4,3.98597]
[1748083246652,0.64665704,2569.6,2569.4,9.26977476]
[1748083247155,0.64665704,2569.6,2569.4,8.98597]
[1748083247356,0.64665704,2569.6,2569.4,3.98597]
[1748083247557,0.64665704,2569.6,2569.4,9.76746661]
[1748083247960,0.64665704,2569.6,2569.4,6.12776661]
[1748083248259,0.64665704,2569.6,2569.4,11.12776661]
[1748083249268,0.64665704,2569.6,2569.4,11.81856661]
[1748083249556,0.08133977,2569.5,2569.4,11.81856661]
[1748083250453,0.08133977,2569.5,2569.4,6.81856661]
[1748083251551,0.08133977,2569.5,2569.4,11.81856661]
[1748083254952,17.517,2570.2,2569.7,1.94517]
[1748083255148,17.517,2570.2,2570.1,3.2078]
[1748083255356,0.77802,2569.9,2569.8,5.2144]
[1748083255562,0.77802,2570.0,2569.8,5.2144]
[1748083255760,0.3050851,2571.1,2570.0,3.88997]
[1748083255954,0.3050851,2571.1,2570.9,0.77772]
[1748083255955,2.89e-06,2571.0,2570.9,0.77772]
[1748083256150,1.59481481,2571.6,2571.2,0.77763]
[1748083256353,0.00584351,2571.5,2571.2,8.98543]
[1748083256556,0.32560118,2571.3,2571.2,8.98543]
[1748083257355,0.00584351,2571.5,2571.4,0.77757]
[1748083257764,2.87598147,2572.8,2571.9,0.7774]
[1748083257765,3.26440071,2572.1,2571.9,0.7774]
[1748083257960,3.26440071,2572.1,2572.0,3.2078]
[1748083258653,3.26440071,2572.1,2572.0,3.98518]
[1748083258654,1.3549,2572.1,2572.0,3.98518]
[1748083258853,0.00583204,2572.3,2572.0,8.98518]
[1748083259062,0.00583204,2572.3,2572.1,1.2798]
[1748083259364,0.00583204,2572.3,2572.2,0.77732]
[1748083259564,0.00583204,2572.3,2572.1,1.2798]
[1748083260365,0.00583204,2572.3,2572.0,3.2078]
[1748083261163,1.38703204,2572.3,2572.0,3.98517]
[1748083261669,1.38703204,2572.3,2572.0,3.2078]
[1748083261853,1.38703204,2572.3,2572.1,1.3233]
[1748083262059,1.38703204,2572.3,2572.1,2.10065]
[1748083262561,0.00583204,2572.3,2572.2,0.77732]
[1748083262757,0.00583204,2572.3,2572.2,1.3233]
[1748083262966,0.00583204,2572.3,2572.0,3.98517]
[1748083263162,0.00583204,2572.3,2572.0,3.2078]
[1748083263470,0.00583204,2572.3,2572.2,0.77732]
[1748083264159,28.6424,2573.2,2572.2,5.0]
[1748083264361,28.6424,2573.2,2573.1,3.2078]
[1748083264362,30.0234,2573.2,2573.1,3.2078]
[1748083265060,35.0234,2573.2,2572.7,3.2078]
[1748083265261,5.15068,2572.8,2572.1,3.2078]
[1748083265567,0.77728,2572.4,2572.1,3.2078]
[1748083265775,1.45649626,2572.3,2572.1,3.98514]
[1748083265962,1.45649626,2572.3,2572.1,3.98513]
[1748083266163,1.45649626,2572.3,2572.1,3.2078]
[1748083266362,1.45649626,2572.3,2572.2,1.4038]
[1748083266564,1.45649626,2572.3,2572.2,2.18112]
[1748083266565,0.07549626,2572.3,2572.2,2.18112]
[1748083268376,0.07549626,2572.3,2572.1,3.2078]
[1748083268569,0.07549626,2572.3,2572.2,0.77732]
[1748083268769,0.07549626,2572.3,2572.2,2.18112]
[1748083269166,0.07549626,2572.3,2572.2,7.18112]
[1748083269463,0.07549626,2572.3,2572.1,3.98515]
[1748083269663,0.07549626,2572.3,2572.1,8.2078]
[1748083269868,0.07549626,2572.3,2572.2,2.04972]
[1748083270275,0.07549626,2572.3,2572.2,7.04972]
[1748083271774,0.07549626,2572.3,2572.2,7.75122]
[1748083273074,0.07549626,2572.3,2572.2,2.75122]
[1748083275271,0.07549626,2572.3,2572.2,7.75122]
[1748083276280,1e-08,2572.3,2572.2,8.53169705]
[1748083277974,1e-08,2572.3,2572.2,9.90971767]
[1748083278473,1e-08,2572.3,2572.2,4.90971767]
[1748083278677,1e-08,2572.3,2572.2,2.15849767]
[1748083278977,1e-08,2572.3,2572.2,9.33201767]
[1748083279581,1e-08,2572.3,2572.2,7.95399705]
[1748083280184,1e-08,2572.3,2572.2,8.63119705]
[1748083281192,1e-08,2572.3,2572.2,1.55779705]
[1748083281486,1e-08,2572.3,2572.2,2.95399705]
[1748083282586,1e-08,2572.3,2572.2,3.86466829]
[1748083283488,1e-08,2572.3,2572.2,4.33201767]
[1748083285188,1e-08,2572.3,2572.2,3.23784642]
[1748083285684,1e-08,2572.3,2572.2,2.46055487]
[1748083285887,1e-08,2572.3,2572.2,2.4605444]
[1748083286386,1.3813,2572.5,2572.4,0.77735]
[1748083286589,1.3813,2572.5,2572.4,4.26901735]
[1748083287084,1.3813,2572.5,2572.4,6.8850724]
[1748083287487,0.666,2572.6,2572.4,6.10845431]
[1748083287488,0.10317,2572.6,2572.4,6.10845431]
[1748083287785,0.10317,2572.6,2572.5,0.28459926]
[1748083288393,0.10317,2572.6,2572.5,1.06182926]
[1748083288592,0.10317,2572.6,2572.5,1.06507631]
[1748083288794,5.88036,2572.6,2572.5,0.78047705]
[1748083290096,5.88036,2572.6,2572.5,0.64045392]
[1748083290286,0.77726,2572.4,2572.3,1.37867342]
[1748083290690,5.77726,2572.4,2572.3,1.37867342]
[1748083291094,0.77732,2572.2,2572.1,4.62542342]
[1748083291292,26.47032,2572.2,2572.1,4.62542342]
[1748083291898,26.47032,2572.2,2572.1,3.24675]
[1748083293496,43.187,2572.2,2572.1,4.0241]
[1748083293701,43.96432,2572.2,2572.1,3.24675]
[1748083294193,43.96432,2572.2,2572.1,4.0241]
[1748083294697,43.96432,2572.2,2572.1,3.24675]
[1748083295100,44.03981626,2572.2,2572.1,3.24675]
[1748083298191,49.03981626,2572.2,2572.1,3.24675]
[1748083299097,49.03981626,2572.2,2572.1,0.03895]
[1748083299299,0.77738,2572.0,2571.9,0.68896419]
[1748083299699,5.77738,2572.0,2571.9,0.68896419]
[1748083299893,6.46938,2572.0,2571.9,0.68896419]
[1748083300299,0.77741,2571.9,2571.8,3.21363204]
[1748083300502,2.67971,2571.9,2571.8,3.21363204]
[1748083300695,7.67971,2571.9,2571.8,3.21363204]
[1748083301294,0.77747,2571.7,2571.6,0.68896419]
[1748083301694,5.77747,2571.7,2571.6,0.68896419]
[1748083301899,0.77756,2571.4,2571.3,0.68896419]
[1748083302201,42.97756,2571.4,2571.3,0.68896419]
[1748083302605,47.97756,2571.4,2571.3,0.68896419]
[1748083302999,0.77762,2571.2,2571.1,0.00583204]
[1748083303703,2.16252,2571.2,2571.1,0.00583204]
[1748083304504,7.16252,2571.2,2571.1,0.00583204]
[1748083305104,3.2078,2571.8,2571.1,10.15773204]
[1748083305294,1.3849,2571.6,2571.5,0.77753]
[1748083305599,0.692,2572.0,2571.9,0.77741]
[1748083305805,19.5067,2572.0,2571.9,3.98521]
[1748083306105,19.59208,2572.0,2571.9,3.2078]
[1748083306499,18.8147,2572.0,2571.6,3.98529]
[1748083306905,0.77747,2571.8,2571.6,3.98529]
[1748083307105,2.09417,2571.7,2571.6,3.2078]
[1748083307313,1.3167,2571.7,2571.6,3.2078]
[1748083307808,1.3167,2571.7,2571.6,3.9853]
[1748083308217,0.77746,2571.8,2571.7,0.77747]
[1748083308520,42.98246,2571.8,2571.7,1.2824]
[1748083308719,42.205,2571.8,2571.7,2.05987]
[1748083309315,0.00583204,2572.1,2571.7,1.2824]
[1748083309614,17.50483204,2572.1,2572.0,3.2078]
[1748083309816,17.50483204,2572.1,2572.0,4.5092]
[1748083310517,17.50483204,2572.1,2572.0,5.28658]
[1748083311115,0.00583204,2572.1,2572.0,5.28658]
[1748083311315,17.50483204,2572.1,2572.0,5.28658]
[1748083313118,18.28218204,2572.1,2572.0,5.28658]
[1748083313418,17.50483204,2572.1,2572.0,5.28658]
[1748083313917,17.50383204,2572.1,2572.0,5.28658]
[1748083314919,0.00583204,2572.1,2572.0,5.28658]
[1748083315119,17.50383204,2572.1,2572.0,5.28658]
[1748083315613,0.00583204,2572.1,2572.0,5.28658]
[1748083316517,56.688,2572.6,2572.5,0.77723]
[1748083316713,39.19,2572.6,2572.5,3.98503]
[1748083316911,24.50812,2572.9,2572.5,3.2078]
[1748083317112,24.50811,2572.9,2572.8,3.98494]
[1748083317314,42.00611,2572.9,2572.8,3.98494]
[1748083317823,0.77711,2572.9,2572.8,3.2078]
[1748083318013,17.498,2572.9,2572.8,3.98492]
[1748083318215,24.5081,2573.0,2572.8,3.98492]
[1748083318516,24.5081,2573.0,2572.9,1.361]
[1748083318717,42.0041,2573.0,2572.9,1.361]
[1748083318918,43.3013,2573.0,2572.9,1.361]
[1748083319718,0.77717,2572.7,2572.6,0.00583204]
[1748083320224,5.77717,2572.7,2572.6,0.00583204]
[1748083320518,7.07437,2572.7,2572.6,0.00583204]
[1748083321919,7.07437,2572.7,2572.6,2.04e-06]
[1748083322629,0.77741,2571.9,2571.8,1.3719]
[1748083322820,42.00241,2571.9,2571.8,1.3719]
[1748083323023,0.77747,2571.7,2571.6,5.9973]
[1748083323327,1.3944,2571.8,2571.3,3.2078]
[1748083323527,0.77754,2571.5,2571.3,3.2078]
[1748083323827,0.77753,2571.5,2571.4,1.3719]
[1748083324519,2.89112,2571.6,2571.4,1.3719]
[1748083324721,40.276,2571.5,2571.4,2.14945]
[1748083325523,0.0813283,2571.7,2571.5,0.77753]
[1748083325723,40.276,2571.6,2571.5,0.7295]
[1748083326022,41.0535,2571.6,2571.5,0.7295]
[1748083328427,0.77756,2571.4,2571.3,3.2078]
[1748083329821,0.77762,2571.2,2571.1,0.00583204]
[1748083333832,0.77769,2571.0,2570.9,3.2078]
[1748083334129,23.55969,2571.0,2570.9,3.2078]
[1748083335430,0.77769,2571.0,2570.9,3.2078]
[1748083335828,22.782,2571.3,2570.9,3.2078]
[1748083336034,18.27864,2571.2,2571.0,0.77767]
[1748083336233,18.27864,2571.2,2571.0,1.48887]
[1748083336934,0.77764,2571.2,2571.1,0.674]
[1748083337232,18.28064,2571.2,2571.1,0.674]
[1748083337532,3.9745283,2571.7,2571.1,0.674]
[1748083337835,40.287,2571.6,2571.2,3.2078]
[1748083338034,3.2891283,2571.7,2571.6,0.7775]
[1748083338233,41.1458083,2571.7,2571.5,3.98531]
[1748083338442,0.0813283,2571.7,2571.6,1.4564]
[1748083338735,0.8587983,2571.7,2571.6,0.6789]
[1748083338930,2.1903983,2571.7,2571.6,0.6789]
[1748083339126,0.0813283,2571.7,2571.6,2.22324272]
[1748083339324,0.0813283,2571.7,2571.6,1.44574272]
[1748083339534,18.3617983,2571.7,2571.6,1.44574272]
[1748083340433,18.3617983,2571.7,2571.1,2.05267342]
[1748083340434,0.77753,2571.5,2571.4,1.3734]
[1748083342029,18.27953,2571.5,2571.4,1.3734]
[1748083342338,0.77753,2571.5,2571.4,1.3734]
[1748083342636,18.27953,2571.5,2571.4,1.3734]
[1748083343646,0.77763,2571.2,2571.1,3.8818]
[1748083344133,0.77772,2570.9,2570.8,3.942]
[1748083344341,0.77772,2570.9,2570.8,3.2078]
[1748083344729,0.77775,2570.8,2570.7,1.38273204]
[1748083346729,0.77775,2570.8,2570.7,0.00583204]
[1748083348035,1.49665,2570.8,2570.7,0.00583204]
[1748083348737,5.7189,2570.8,2569.6,1.37867342]
[1748083348936,0.77796,2570.1,2570.0,1.3569]
[1748083349538,2.11466,2570.1,2570.0,1.3569]
[1748083349830,0.77799,2570.0,2569.9,3.2078]
[1748083350031,2.11469,2570.0,2569.9,3.2078]
[1748083350251,0.77802,2569.9,2569.8,0.00583204]
[1748083350438,19.61972,2569.9,2569.8,0.00583204]
[1748083351331,3.21363204,2570.3,2569.8,0.00583204]
[1748083351539,0.00583204,2570.3,2570.2,3.98573]
[1748083352034,21.848,2570.9,2570.8,0.77775]
[1748083352241,0.77775,2570.8,2570.7,3.2078]
[1748083352435,0.77775,2570.8,2570.7,1.3975]
[1748083352637,0.77775,2570.8,2570.7,4.6053]
[1748083352835,0.77775,2570.8,2570.7,1.3975]
[1748083353739,21.848,2570.9,2570.7,1.3975]
[1748083353929,21.848,2570.9,2570.7,2.17527]
[1748083353930,17.507,2570.8,2570.7,2.17527]
[1748083354337,17.507,2570.8,2570.7,1.3975]
[1748083354742,17.507,2570.8,2570.7,2.17526]
[1748083355040,18.28475,2570.8,2570.7,1.3975]
[1748083355643,19.62045,2570.8,2570.7,1.3975]
[1748083356041,19.69594626,2570.8,2570.7,1.3975]
[1748083359446,0.77781,2570.6,2570.5,3.8986]
[1748083359647,0.77781,2570.6,2570.5,5.2969]
[1748083361040,19.69596626,2570.8,2570.6,0.7778]
[1748083361245,19.69596626,2570.8,2570.7,1.365]
[1748083362350,39.27426626,2570.8,2570.7,1.365]
[1748083362749,38.49649626,2570.8,2570.7,2.14278]
[1748083362949,39.27424626,2570.8,2570.7,1.365]
[1748083363253,39.27424626,2570.8,2570.7,2.14278]
[1748083363443,39.27424626,2570.8,2570.7,1.365]
[1748083364454,39.27424626,2570.8,2570.5,3.8986]
[1748083364455,0.77781,2570.6,2570.5,3.8986]
[1748083364654,0.77781,2570.6,2570.5,4.67644]
[1748083364853,17.507,2570.6,2570.5,4.67644]
[1748083366353,18.28481,2570.6,2570.5,4.67644]
[1748083367054,18.28481,2570.6,2570.5,3.8986]
[1748083367552,18.28481,2570.6,2570.5,5.2879]
[1748083368858,18.28481,2570.6,2570.5,3.2078]
[1748083369155,19.02071,2570.6,2570.5,3.2078]
[1748083370559,0.77793,2570.2,2570.1,0.68793378]
[1748083370756,21.69193,2570.2,2570.1,0.68793378]
[1748083370956,0.77796,2570.1,2570.0,1.3132]
[1748083373461,2.07186,2570.1,2570.0,1.3132]
[1748083373856,0.77799,2570.0,2569.9,3.2078]
[1748083374056,19.57989,2570.0,2569.9,3.2078]
[1748083374461,19.57989,2570.0,2569.9,4.4913]
[1748083374662,19.57989,2570.0,2569.9,5.26332919]
[1748083375162,2.3,2570.5,2569.9,5.26332919]
[1748083375362,0.77794,2570.2,2570.0,0.77797]
[1748083375563,0.77794,2570.2,2570.1,1.2835]
[1748083378261,39.20294,2570.2,2570.1,1.2835]
[1748083380267,21.69394,2570.2,2570.1,1.2835]
[1748083380468,39.20394,2570.2,2570.1,1.2835]
[1748083381661,0.77792,2570.3,2570.1,1.2835]
[1748083381859,20.7629,2570.3,2570.2,0.6956]
[1748083382163,38.2729,2570.3,2570.2,1.47353]
[1748083382372,38.2729,2570.3,2570.2,2.18913]
[1748083382564,38.2729,2570.3,2570.2,1.4112]
[1748083383866,37.495,2570.3,2570.2,1.4112]
[1748083384065,38.2729,2570.3,2570.2,2.18913]
[1748083384265,38.2729,2570.3,2570.2,1.4112]
[1748083385471,38.34839626,2570.3,2570.2,1.4112]
[1748083387666,0.77793,2570.2,2570.1,1.2835]
[1748083387873,2.13623,2570.2,2570.1,1.2835]
[1748083388169,0.77793,2570.2,2570.1,1.2835]
[1748083389169,0.07549626,2570.3,2570.1,1.2835]
[1748083389367,17.58549626,2570.3,2570.2,4.69583]
[1748083389667,17.58549626,2570.3,2570.2,3.9179]
[1748083389872,18.36339626,2570.3,2570.2,3.9179]
[1748083390175,18.36339626,2570.3,2570.2,0.7101]
[1748083390368,17.58549626,2570.3,2570.2,1.48803]
[1748083390679,18.36339626,2570.3,2570.2,1.48803]
[1748083390972,18.36339626,2570.3,2570.2,2.26008856]
[1748083391567,17.58549626,2570.3,2570.2,2.26008856]
[1748083391968,17.58549626,2570.3,2570.2,5.46788856]
[1748083392177,18.36339626,2570.3,2570.2,5.46788856]
[1748083392475,17.58549626,2570.3,2570.2,5.46788856]
[1748083392668,0.07549626,2570.3,2570.2,5.46788856]
[1748083392869,17.58549626,2570.3,2570.2,5.46788856]
[1748083393576,17.58549626,2570.3,2570.2,6.15582234]
[1748083394282,0.07549626,2570.3,2570.2,6.15582234]
[1748083395071,0.07549626,2570.3,2570.2,5.46788856]
[1748083397679,0.07549626,2570.3,2570.2,6.38497684]
[1748083398969,0.07549626,2570.3,2570.2,5.46788856]
[1748083401066,0.85339626,2570.3,2570.2,4.68995856]
[1748083401271,0.07549626,2570.3,2570.2,5.46788856]
[1748083402077,0.85339626,2570.3,2570.2,5.46788856]
[1748083402275,0.85339626,2570.3,2570.2,3.97985856]
[1748083402579,2.17999626,2570.3,2570.2,3.97985856]
[1748083404180,2.17999626,2570.3,2570.2,3.2078]
[1748083404676,19.68899626,2570.3,2570.2,3.98573]
[1748083404978,19.68899626,2570.3,2570.2,3.2078]
[1748083405178,0.85339626,2570.3,2570.2,3.98573]
[1748083405377,0.07549626,2570.3,2570.2,3.98573]
[1748083405676,36.65149626,2570.3,2570.2,3.98573]
[1748083407078,36.65149626,2570.3,2570.2,4.75604687]
[1748083407483,37.42939626,2570.3,2570.2,4.75604687]
[1748083409073,37.42939626,2570.3,2570.2,3.97811687]
[1748083410982,37.42939626,2570.3,2570.2,0.77031687]
[1748083411671,0.77799,2570.0,2569.9,3.2078]
[1748083411974,18.28699,2570.0,2569.9,3.2078]
[1748083412171,18.28699,2570.0,2569.9,4.4837]
[1748083412882,18.28699,2570.0,2569.9,3.2078]
[1748083413074,0.77802,2569.9,2569.8,0.6937938]
[1748083413274,2.83902,2569.9,2569.8,0.6937938]
[1748083413473,7.83902,2569.9,2569.8,0.6937938]
[1748083413677,7.83902,2569.9,2569.8,0.00583204]
[1748083415381,2.83902,2569.9,2569.8,0.00583204]
[1748083415980,2.91451626,2569.9,2569.8,0.00583204]
[1748083417785,20.42651626,2569.9,2569.8,0.00583204]
[1748083417984,1.43139626,2569.9,2569.8,2.06668204]
[1748083418286,0.07549626,2569.9,2569.8,2.06668204]
[1748083418786,17.58749626,2569.9,2569.8,2.81498204]
[1748083419381,0.07549626,2569.9,2569.8,3.5862049]
[1748083419686,0.07549626,2569.9,2569.8,8.5862049]
[1748083421283,0.07549626,2569.9,2569.8,9.27416666]
[1748083422486,0.07549626,2569.9,2569.8,4.27416666]
[1748083424086,0.07549626,2569.9,2569.8,3.5862049]
[1748083424296,6.26e-06,2569.9,2569.8,8.5862049]
[1748083424584,6.26e-06,2569.9,2569.8,3.5862049]
[1748083425384,5.07e-06,2570.7,2570.6,0.77781]
[1748083425584,2.04e-06,2571.0,2570.9,0.77772]
[1748083425784,8.62e-06,2571.1,2571.0,0.77769]
[1748083425987,8.62e-06,2571.3,2571.2,0.77763]
[1748083426291,0.77156648,2571.6,2571.5,0.77754]
[1748083426491,0.77156648,2571.6,2571.5,3.98534]
[1748083426796,0.77156648,2571.6,2571.5,8.98534]
[1748083427489,0.77156648,2571.6,2571.5,6.8117806]
[1748083428884,0.77156648,2571.6,2571.5,7.5526806]
[1748083429185,0.84706274,2571.6,2571.5,7.5526806]
[1748083429487,0.07549626,2571.6,2571.5,7.5526806]
[1748083429691,0.07549626,2571.6,2571.5,6.86486286]
[1748083430190,0.07549626,2571.6,2571.5,6.08732286]
[1748083430585,0.07549626,2571.6,2571.5,6.86486286]
[1748083430789,0.07549626,2571.6,2571.5,6.09364]
[1748083438989,0.07549626,2571.6,2571.5,5.35274]
[1748083439308,1.45829626,2571.6,2571.5,5.35274]
[1748083440397,0.07549626,2571.6,2571.5,5.35274]
[1748083440995,0.07549626,2571.6,2571.5,3.2078]
[1748083441191,2.20720626,2571.6,2571.5,3.2078]
[1748083441694,0.07549626,2571.6,2571.5,3.98534]
[1748083442092,0.07549626,2571.6,2571.5,5.40224]
[1748083445093,20.0036,2572.4,2571.8,1.94362]
[1748083445293,1.2769,2572.6,2572.4,0.77727]
[1748083445597,18.7759,2572.6,2572.4,0.77727]
[1748083445801,19.55311,2572.6,2572.4,2.09077]
[1748083446306,2.0632,2572.5,2572.4,2.09077]
[1748083446498,2.84043,2572.5,2572.4,2.09077]
[1748083446694,2.84043,2572.5,2572.4,1.3135]
[1748083446903,0.00583204,2572.7,2572.5,0.77722]
[1748083447203,0.77722,2572.6,2572.3,3.2078]
[1748083447398,1.325,2572.5,2572.4,0.77726]
[1748083447704,1.325,2572.5,2572.4,2.09076]
[1748083448004,0.77726,2572.4,2572.3,3.2078]
[1748083448295,1.49636,2572.4,2572.3,3.2078]
[1748083448697,1.49636,2572.4,2572.0,3.2078]
[1748083448698,0.77735,2572.2,2572.0,3.2078]
[1748083448902,17.498,2572.1,2572.0,3.98519]
[1748083449104,19.58646,2572.1,2572.0,3.2078]
[1748083449306,18.8091,2572.1,2572.0,3.98519]
[1748083450400,1.4448,2572.4,2572.3,0.77729]
[1748083450599,1.4448,2572.4,2572.3,3.98509]
[1748083451002,2.7559,2572.4,2572.3,3.98509]
[1748083451501,20.2529,2572.4,2572.3,3.98509]
[1748083452605,2.0368,2572.4,2572.3,3.98509]
[1748083452806,1.3111,2572.4,2572.3,3.98509]
[1748083453207,19.29983204,2572.7,2572.6,0.7772]
[1748083453408,36.79683204,2572.7,2572.6,3.985]
[1748083453909,37.57400204,2572.7,2572.6,3.2078]
[1748083454111,38.96810204,2572.7,2572.6,3.2078]
[1748083455211,38.96810204,2572.7,2572.6,3.985]
[1748083455401,38.96810204,2572.7,2572.6,3.2078]
[1748083455601,0.00583204,2572.7,2572.6,3.985]
[1748083457003,0.00583204,2572.7,2572.6,5.4449511]
[1748083457203,1.33613204,2572.7,2572.6,5.4449511]
[1748083458311,1.33613204,2572.7,2572.6,4.75713336]
[1748083458511,0.00583204,2572.7,2572.6,4.75713336]
[1748083458907,1.33963204,2572.7,2572.6,4.75713336]
[1748083459108,2.11680204,2572.7,2572.6,4.75713336]
[1748083459308,1.33963204,2572.7,2572.6,4.75713336]
[1748083459616,1.4151283,2572.7,2572.6,4.75713336]
[1748083459913,2.1922983,2572.7,2572.6,3.97993336]
[1748083460208,1.4151283,2572.7,2572.6,4.75713336]
[1748083461009,2.1922983,2572.7,2572.6,4.75713336]
[1748083461309,1.4151283,2572.7,2572.6,4.75713336]
[1748083462110,0.0813283,2572.7,2572.6,4.75713336]
[1748083462315,18.3524983,2572.7,2572.6,3.97993336]
[1748083462512,17.5753283,2572.7,2572.6,4.75713336]
[1748083462812,18.3524983,2572.7,2572.6,4.75713336]
[1748083463013,19.7339983,2572.7,2572.6,3.97993336]
[1748083464113,19.7339983,2572.7,2572.6,0.77213336]
[1748083464912,39.0249983,2572.7,2572.6,0.77213336]
[1748083465511,38.2478283,2572.7,2572.3,3.2078]
[1748083465813,0.77726,2572.4,2572.3,3.2078]
[1748083466213,0.7773,2572.3,2572.2,0.68781774]
[1748083466514,2.8206,2572.3,2572.2,0.68781774]
[1748083467416,7.8206,2572.3,2572.2,0.68781774]
[1748083467915,7.8206,2572.3,2572.0,3.2078]
[1748083467916,0.77736,2572.1,2572.0,3.2078]
[1748083470216,0.77748,2571.7,2571.6,3.89561774]
[1748083470416,18.27248,2571.7,2571.6,3.2078]
[1748083471118,19.63638,2571.7,2571.6,3.2078]
[1748083472311,0.77748,2571.7,2571.6,3.2078]
[1748083472510,18.27448,2571.7,2571.6,3.2078]
[1748083473219,0.77748,2571.7,2571.6,3.9798741]
[1748083473419,19.55678,2571.7,2571.6,3.9798741]
[1748083474218,19.55678,2571.7,2571.6,3.2078]
[1748083475729,0.77751,2571.6,2571.5,1.3763]
[1748083475916,0.77754,2571.5,2571.4,0.7128]
[1748083476117,0.77754,2571.5,2571.4,2.1124]
[1748083476827,0.77754,2571.5,2571.4,2.88997]
[1748083477208,2.07153,2571.6,2571.4,2.88997]
[1748083477523,2.07153,2571.6,2571.5,0.77754]
[1748083477725,0.77754,2571.5,2571.4,2.88996]
[1748083478021,2.07154,2571.5,2571.4,2.1124]
[1748083478422,0.77757,2571.4,2571.3,0.00583204]
[1748083478624,18.6,2571.4,2571.3,0.78343204]
[1748083478818,18.6,2571.4,2571.3,2.18303204]
[1748083479323,36.099,2571.4,2571.3,2.18303204]
[1748083479823,18.6,2571.4,2571.3,2.18303204]
[1748083480124,36.099,2571.4,2571.3,2.18303204]
[1748083482926,36.87657,2571.4,2571.3,2.18303204]
[1748083486828,36.099,2571.4,2571.3,2.18303204]
[1748083487125,36.87657,2571.4,2571.3,2.18303204]
[1748083487331,36.099,2571.4,2571.3,2.18303204]
[1748083488529,36.87657,2571.4,2571.3,1.40543204]
[1748083488826,36.87957,2571.4,2571.3,0.00583204]
[1748083489131,36.102,2571.4,2571.3,2.18113204]
[1748083489832,0.07549626,2571.7,2571.6,0.77751]
[1748083490027,36.17849626,2571.7,2571.6,0.77751]
[1748083490329,36.103,2571.7,2571.6,2.90631]
[1748083490726,36.88048,2571.7,2571.6,2.90631]
[1748083491123,36.103,2571.7,2571.6,2.90631]
[1748083492431,18.602,2571.7,2571.6,2.90631]
[1748083492629,36.103,2571.7,2571.6,2.90631]
[1748083493335,36.88048,2571.7,2571.6,2.90631]
[1748083493633,36.103,2571.7,2571.6,2.90631]
[1748083494637,36.88048,2571.7,2571.6,2.90631]
[1748083495234,0.77751,2571.6,2571.5,3.2078]
[1748083495437,2.18511,2571.6,2571.5,3.2078]
[1748083495827,2.18511,2571.6,2571.5,4.5728]
[1748083496033,1.4076,2571.6,2571.5,5.35034]
[1748083496228,2.18511,2571.6,2571.5,5.35034]
[1748083496739,2.18511,2571.6,2571.5,6.12568581]
[1748083497039,2.18511,2571.6,2571.5,5.34814581]
[1748083497835,2.18511,2571.6,2571.5,6.12568581]
[1748083498441,18.602,2571.7,2571.6,0.77751]
[1748083498741,36.102,2571.7,2571.5,6.12566581]
[1748083498935,0.77751,2571.6,2571.5,3.98314581]
[1748083499135,2.88661,2571.6,2571.5,3.98314581]
[1748083500840,20.38661,2571.6,2571.5,3.98314581]
[1748083501241,20.38661,2571.6,2571.5,5.37334581]
[1748083501741,20.38761,2571.6,2571.5,6.15088581]
[1748083501940,18.27851,2571.6,2571.5,6.15088581]
[1748083502343,0.7775,2571.7,2571.6,0.77751]
[1748083502534,3.51944988,2572.3,2571.9,0.77741]
[1748083502738,0.77736,2572.1,2572.0,1.3902]
[1748083503343,19.34728,2572.4,2572.0,1.3902]
[1748083503543,3.2078,2572.6,2572.3,3.2078]
[1748083503544,1.4013,2572.6,2572.3,3.2078]
[1748083503839,17.501,2572.5,2572.4,2.90465]
[1748083504038,18.57,2572.6,2572.5,0.77724]
[1748083504232,36.071,2572.6,2572.5,2.17564]
[1748083504440,18.57483204,2572.7,2572.6,0.77721]
[1748083504638,0.77721,2572.6,2572.5,1.3984]
[1748083504840,0.77724,2572.5,2572.4,0.729]
[1748083505139,0.77724,2572.5,2572.4,1.3984]
[1748083505337,0.77727,2572.4,2572.3,3.2078]
[1748083505638,1.4013,2572.6,2572.2,0.68781774]
[1748083505639,0.7773,2572.3,2572.2,0.68781774]
[1748083505843,1.5188,2572.3,2572.2,0.68781774]
[1748083506244,0.7415,2572.3,2572.2,1.46514774]
[1748083506543,1.5188,2572.3,2572.2,0.68781774]
[1748083506741,2.8176,2572.3,2572.2,0.68781774]
[1748083507045,0.77736,2572.1,2572.0,2.1274]
[1748083507240,36.068,2572.1,2572.0,2.90479]
[1748083507440,36.14349626,2572.1,2572.0,2.90479]
[1748083507643,36.14349626,2572.1,2572.0,2.1274]
[1748083507839,36.92085626,2572.1,2572.0,2.1274]
[1748083508442,36.14349626,2572.1,2572.0,2.90479]
[1748083508842,18.64449626,2572.1,2572.0,2.90479]
[1748083509044,36.14349626,2572.1,2572.0,2.90479]
[1748083509445,0.07549626,2572.1,2572.0,2.90479]
[1748083509646,0.07549626,2572.1,2572.0,7.90479]